fUSD/lending_fUSD_20251011
["ID","MTS","AMOUNT","RATE_DAILY","PERIOD"]
[390931191,1760223185434,-182.21264675,0.00013149,2]
[390931192,1760223185459,-156.45177446,0.00013149,2]
[390931196,1760223188192,-343.54822554,0.00013149,2]
[390931197,1760223188219,-20.9142955,0.00013149,2]
[390931198,1760223191903,-187.36019949,0.00013149,2]
[390931199,1760223195463,-291.72550501,0.00013149,2]
[390931200,1760223195491,-8.27449499,0.00013149,2]
[390931211,1760223198430,-252.26111767,0.00013149,2]
[390931212,1760223201698,-37.7461446,0.00013149,2]
[390931213,1760223201723,-138.4938554,0.00013149,2]
[390931214,1760223203711,-174.62095854,0.00013149,2]
[390931215,1760223206918,-186.88518606,0.00013149,2]
[390931216,1760223206952,-196.89628975,0.00013149,2]
[390931217,1760223209912,-211.54606464,0.00013149,2]
[390931218,1760223212250,-91.55764561,0.00013149,2]
[390931219,1760223212277,-125.78671873,0.00013149,2]
[390931220,1760223215979,-223.68881848,0.00013149,2]
[390931221,1760223220735,-150.52446279,0.00013149,2]
[390931222,1760223220761,-108.95528143,0.00013149,2]
[390931223,1760223223051,-391.04471857,0.00013149,2]
[390931224,1760223223080,-81.13445922,0.00013149,2]
[390931235,1760223232137,-171.33213783,0.00013149,2]
[390931236,1760223234750,-159.37659119,0.00013149,2]
[390931237,1760223237411,-88.15681176,0.00013149,2]
[390931238,1760223237437,-337.32474416,0.00013149,2]
[390931239,1760223238915,-162.67525584,0.00013149,2]
[390931240,1760223238942,-245.73474416,0.00013149,2]
[390931241,1760223246527,-166.90521532,0.00013149,2]
[390931242,1760223248200,-87.36004052,0.00013149,2]
[390931243,1760223248227,-151.68981661,0.00013149,2]
[390931244,1760223250678,-150.215437,0.00013083,2]
[390931245,1760223250706,-8.90898283,0.00013149,2]
[390931246,1760223254650,-170.92434197,0.00013149,2]
[390931248,1760223256743,-168.47685859,0.00013149,2]
[390931249,1760223256770,-29.0369107,0.00013149,2]
[390931251,1760223273309,-224.20039809,0.0001315,2]
[390931252,1760223277011,-287.74938867,0.0001315,2]
[390931253,1760223279144,-161.20902467,0.0001315,2]
[390931272,1760223303426,-26.84118857,0.0001315,2]
[390931273,1760223303450,-126.45863142,0.0001315,2]
[390931274,1760223305803,-165.35338113,0.0001315,2]
[390931275,1760223306409,985.29,6.82e-05,2]
[390931276,1760223307012,985.29,7.179e-05,2]
[390931277,1760223307266,985.29,7.538e-05,2]
[390931278,1760223307487,985.29,7.897e-05,2]
[390931279,1760223308792,985.29,8.256e-05,2]
[390931280,1760223308887,985.29,8.615e-05,2]
[390931281,1760223309189,985.29,8.974e-05,2]
[390931282,1760223309248,985.29,9.333e-05,2]
[390931283,1760223309317,985.29,9.692e-05,2]
[390931284,1760223309375,985.29,0.00010051,2]
[390931285,1760223309409,-356.93430548,0.0001315,2]
[390931286,1760223309461,985.29,0.0001041,2]
[390931287,1760223309565,985.29,0.00010769,2]
[390931288,1760223309779,985.29,0.00011128,2]
[390931289,1760223309991,985.29,0.00011487,2]
[390931290,1760223310225,985.29,0.00011846,2]
[390931291,1760223310413,985.29,0.00012205,2]
[390931293,1760223314142,-173.04959916,0.00012564,2]
[390931294,1760223316451,-263.76284894,0.00012564,2]
[390931339,1760223333933,-262.18818496,0.00012564,2]
[390931341,1760223339335,-203.93031377,0.00012564,2]
[390931342,1760223341645,-82.35905317,0.00012564,2]
[390931343,1760223341669,-152.83915102,0.00012923,2]
[390931345,1760223342863,-251.44,0.00012923,2]
[390931346,1760223346615,-382.71407976,0.00012923,2]
[390931347,1760223346766,8923.75472047,0.00012,2]
[390931348,1760223346789,2251.0946243,0.00012,2]
[390931349,1760223346810,2251.0946243,0.00012,2]
[390931350,1760223346832,2251.0946243,0.00012,2]
[390931351,1760223346854,2251.0946243,0.00012,2]
[390931352,1760223346876,2251.0946243,0.00012,2]
[390931353,1760223346897,2251.0946243,0.00012,2]
[390931354,1760223346919,2251.0946243,0.00012,2]
[390931355,1760223346943,2251.0946243,0.00012,2]
[390931356,1760223346967,2251.0946243,0.00012,2]
[390931357,1760223346995,20816.39366083,0.00012,2]
[390931359,1760223363581,-153.76773523,0.00012923,2]
[390931360,1760223365364,-44.52903399,0.00012923,2]
[390931361,1760223365387,-215.40096601,0.0001315,2]
[390931362,1760223367759,-236.66701204,0.00013036,2]
[390931363,1760223370515,-131.77109922,0.00013036,2]
[390931364,1760223370538,-30.84908558,0.0001315,2]
[390931365,1760223373147,-160.64682573,0.0001315,2]
[390931366,1760223375117,-244.43402588,0.0001315,2]
[390931447,1760223468262,-99.92277877,0.0001315,2]
[390931448,1760223468284,-268.08997436,0.0001315,2]
[390931449,1760223474380,-203.85238356,0.0001315,2]
[390931450,1760223476460,-28.05764208,0.0001315,2]
[390931451,1760223476483,-163.68745285,0.00013181,2]
[390931454,1760223498407,-179.40112295,0.0001315,2]
[390931455,1760223501080,-290.75334446,0.0001315,2]
[390931456,1760223502579,-445.33027368,0.0001315,2]
[390931546,1760223618457,-334.5966844,0.0001315,2]
[390931649,1760223648289,-331.12591197,0.0001315,2]
[390931682,1760223653851,-236.23715106,0.0001315,2]
[390931683,1760223656033,-342.24306935,0.0001315,2]
[390931684,1760223660197,-249.83356685,0.0001315,2]
[390931685,1760223678396,-140.56030077,0.0001315,2]
[390931686,1760223678417,-34.05522081,0.0001315,2]
[390931687,1760223679960,-264.80179581,0.0001315,2]
[390931688,1760223681489,-201.14298338,0.0001315,2]
[390931689,1760223681511,-80.76385792,0.00013181,2]
[390931690,1760223684871,-201.87147116,0.00013181,2]
[390931772,1760223700144,-334.49537312,0.00013197,2]
[390931853,1760223738514,-205.85213217,0.0001315,2]
[390931854,1760223741954,-336.29231693,0.0001315,2]
[390931855,1760223743930,-154.15556164,0.0001315,2]
[390931856,1760223746937,-437.33421729,0.0001315,2]
[390931960,1760224188360,-163.68745285,0.0001305,2]
[390931961,1760224188382,-54.33737599,0.00013114,2]
[390931962,1760224190945,-133.0228235,0.00013114,2]
[390931963,1760224190969,-242.69260162,0.00013114,2]
[390931964,1760224192499,-7.30739838,0.00013114,2]
[390931965,1760224192525,-299.68180322,0.00013114,2]
[390931966,1760224195374,-431.20046895,0.00013114,2]
[390931968,1760224197474,-263.28915755,0.00013114,2]
[390931969,1760224199021,-181.57736704,0.00013114,2]
[390931970,1760224201022,-241.39494732,0.00013114,2]
[390931992,1760224232190,-8.98227212,0.00013114,2]
[390931993,1760224232202,-2000.0,0.00013114,2]
[390931994,1760224232212,-1048.97,0.00013114,2]
[390931995,1760224232222,-66.36577197,0.0001315,2]
[390931996,1760224232232,-500.0,0.0001315,2]
[390931997,1760224232242,-282.63532907,0.00013197,2]
[390931998,1760224232252,-176.77895,0.00013201,2]
[390931999,1760224232261,-2000.0,0.0001321,2]
[390932000,1760224232271,-1200.0,0.00013212,2]
[390932001,1760224232281,-300.0,0.00013219,2]
[390932002,1760224232291,-300.0,0.00013219,2]
[390932003,1760224232300,-300.0,0.00013219,2]
[390932004,1760224232310,-12742.72,0.0001322,2]
[390932005,1760224232320,-985.29,0.00013282,2]
[390932006,1760224232330,-698.5,0.00013284,2]
[390932007,1760224232340,-250.0,0.00013367,7]
[390932008,1760224232354,-500.0,0.00013424,2]
[390932009,1760224232363,-994.19,0.00013499,2]
[390932010,1760224232373,-299.78638866,0.00013504,2]
[390932011,1760224232383,-503.53652257,0.00013504,2]
[390932012,1760224232393,-447.62045917,0.00013504,2]
[390932013,1760224232402,-500.0,0.00013504,2]
[390932014,1760224232411,-5482.86351414,0.00013506,2]
[390932015,1760224232421,-2337.89,0.00013516,2]
[390932016,1760224232432,-150.0,0.00013556,2]
[390932017,1760224232441,-205.73527784,0.00013558,2]
[390932018,1760224232455,-151.0,0.00013558,2]
[390932019,1760224232465,-151.0,0.00013558,2]
[390932020,1760224232474,-151.0,0.00013558,2]
[390932021,1760224232484,-151.0,0.00013558,2]
[390932022,1760224232494,-151.0,0.00013558,2]
[390932023,1760224232503,-151.0,0.00013558,2]
[390932024,1760224232513,-151.0,0.00013558,2]
[390932025,1760224232523,-151.0,0.00013558,2]
[390932026,1760224232532,-151.0,0.00013558,2]
[390932027,1760224232543,-151.0,0.00013558,2]
[390932028,1760224232553,-151.0,0.00013558,2]
[390932029,1760224232564,-151.0,0.00013558,2]
[390932030,1760224232574,-151.0,0.00013558,2]
[390932031,1760224232584,-151.0,0.00013558,2]
[390932032,1760224232595,-151.0,0.00013558,2]
[390932033,1760224232605,-151.0,0.00013558,2]
[390932034,1760224232614,-151.0,0.00013558,2]
[390932035,1760224232623,-151.0,0.00013558,2]
[390932037,1760224232633,-151.0,0.00013558,2]
[390932038,1760224232642,-151.0,0.00013558,2]
[390932039,1760224232651,-151.0,0.00013558,2]
[390932040,1760224232660,-151.0,0.00013558,2]
[390932041,1760224232670,-151.0,0.00013558,2]
[390932043,1760224232679,-151.0,0.00013558,2]
[390932046,1760224232688,-151.0,0.00013558,2]
[390932048,1760224232700,-151.0,0.00013558,2]
[390932050,1760224232709,-151.0,0.00013558,2]
[390932052,1760224232719,-151.0,0.00013558,2]
[390932054,1760224232728,-151.0,0.00013558,2]
[390932055,1760224232738,-151.0,0.00013558,2]
[390932056,1760224232747,-151.0,0.00013558,2]
[390932057,1760224232756,-151.0,0.00013558,2]
[390932058,1760224232766,-151.0,0.00013558,2]
[390932059,1760224232775,-151.0,0.00013558,2]
[390932060,1760224232785,-151.0,0.00013558,2]
[390932061,1760224232794,-151.0,0.00013558,2]
[390932062,1760224232803,-500.0,0.00013558,2]
[390932063,1760224232813,-151.0,0.00013558,2]
[390932064,1760224232822,-151.0,0.00013558,2]
[390932065,1760224232832,-500.0,0.00013558,2]
[390932066,1760224232842,-151.0,0.00013558,2]
[390932067,1760224232851,-151.0,0.00013558,2]
[390932068,1760224232860,-151.0,0.00013558,2]
[390932069,1760224232870,-500.0,0.00013558,2]
[390932070,1760224232879,-151.0,0.00013558,2]
[390932071,1760224232888,-151.0,0.00013558,2]
[390932072,1760224232897,-500.0,0.00013558,2]
[390932073,1760224232906,-151.0,0.00013558,2]
[390932074,1760224232915,-151.0,0.00013558,2]
[390932075,1760224232924,-160.15730937,0.00013558,2]
[390932076,1760224232933,-151.0,0.00013558,2]
[390932077,1760224232942,-154.49405679,0.00013558,2]
[390932078,1760224232953,-151.0,0.00013558,2]
[390932079,1760224232963,-151.0,0.00013558,2]
[390932080,1760224232972,-151.0,0.00013558,2]
[390932081,1760224232981,-151.0,0.00013558,2]
[390932082,1760224232990,-151.0,0.00013558,2]
[390932083,1760224232999,-200.0,0.00013558,2]
[390932084,1760224233007,-151.0,0.00013558,2]
[390932085,1760224233016,-151.0,0.00013558,2]
[390932086,1760224233026,-151.0,0.00013558,2]
[390932087,1760224233035,-151.0,0.00013558,2]
[390932088,1760224233044,-151.0,0.00013558,2]
[390932089,1760224233053,-151.0,0.00013558,2]
[390932090,1760224233062,-151.0,0.00013558,2]
[390932091,1760224233071,-151.0,0.00013558,2]
[390932092,1760224233080,-151.0,0.00013558,2]
[390932093,1760224233089,-151.0,0.00013558,2]
[390932094,1760224233099,-151.0,0.00013558,2]
[390932095,1760224233108,-151.0,0.00013558,2]
[390932096,1760224233117,-151.0,0.00013558,2]
[390932097,1760224233126,-151.0,0.00013558,2]
[390932098,1760224233135,-151.0,0.00013558,2]
[390932099,1760224233145,-225.816144,0.00013558,2]
[390932100,1760224233154,-14138.39,0.00013566,2]
[390932101,1760224233164,-2979.13,0.00013598,2]
[390932102,1760224233173,-438.16733921,0.00013626,2]
[390932103,1760224233182,-985.29,0.00013641,2]
[390932104,1760224233192,-622.53391269,0.00013666,2]
[390932105,1760224233203,-828.47,0.00013699,2]
[390932106,1760224233212,-322.6107,0.00013736,2]
[390932107,1760224233221,-670.58624095,0.00013736,2]
[390932108,1760224233231,-151.0,0.00013736,2]
[390932109,1760224233240,-257.91778498,0.00013736,2]
[390932110,1760224233250,-644.79446246,0.00013736,2]
[390932111,1760224233259,-221.42,0.00013816,2]
[390932112,1760224233269,-7527.72,0.00013933,2]
[390932113,1760224233278,-924.66290621,0.00013942,2]
[390932114,1760224233287,-228.0,0.00013977,2]
[390932115,1760224233296,-228.0,0.00013984,2]
[390932116,1760224233305,-228.0,0.00013988,2]
[390932117,1760224233315,-230.5,0.00014001,2]
[390932118,1760224233324,-4705.0,0.00014021,2]
[390932119,1760224233333,-500.0,0.00014027,2]
[390932120,1760224233343,-228.0,0.00014054,2]
[390932121,1760224233354,-581.14320251,0.00014071,2]
[390932122,1760224233363,-228.0,0.00014098,2]
[390932123,1760224233372,-228.0,0.00014133,2]
[390932124,1760224233381,-555.46975741,0.00014153,2]
[390932125,1760224233392,-4705.0,0.00014178,2]
[390932126,1760224233401,-228.0,0.00014245,2]
[390932127,1760224233411,-228.0,0.00014297,2]
[390932128,1760224233420,-228.0,0.00014335,2]
[390932129,1760224233431,-228.0,0.00014339,2]
[390932130,1760224233440,-4256.0,0.00014374,2]
[390932131,1760224233451,-228.0,0.00014387,2]
[390932132,1760224233460,-195.0,0.00014425,2]
[390932133,1760224233470,-195.0,0.00014425,2]
[390932134,1760224233480,-195.0,0.00014425,2]
[390932135,1760224233489,-2000.0,0.00014425,2]
[390932136,1760224233498,-195.0,0.00014425,2]
[390932137,1760224233507,-250.0,0.00014425,2]
[390932138,1760224233517,-2000.0,0.00014425,2]
[390932139,1760224233526,-250.0,0.00014425,2]
[390932140,1760224233535,-300.0,0.00014425,2]
[390932141,1760224233544,-228.0,0.00014427,2]
[390932142,1760224233553,-4705.0,0.00014444,2]
[390932143,1760224233562,-1245.06782538,0.00014468,2]
[390932144,1760224233571,-228.0,0.00014472,2]
[390932145,1760224233580,-4256.0,0.00014486,2]
[390932146,1760224233589,-228.0,0.0001449,2]
[390932147,1760224233598,-302.0,0.00014494,2]
[390932148,1760224233607,-420.0,0.00014494,2]
[390932149,1760224233615,-420.0,0.00014494,2]
[390932150,1760224233624,-228.0,0.00014497,2]
[390932151,1760224233633,-228.0,0.00014501,2]
[390932152,1760224233642,-9999.99,0.00014504,2]
[390932153,1760224233652,-5668.58,0.00014504,2]
[390932154,1760224233661,-228.0,0.00014509,2]
[390932155,1760224233671,-500.0,0.0001452,2]
[390932156,1760224233680,-1680.0,0.00014533,2]
[390932157,1760224233689,-319.0,0.00014548,2]
[390932158,1760224233699,-221.42,0.00014583,2]
[390932159,1760224233715,-381.57298283,0.00014614,2]
[390932160,1760224233732,-300.78,0.00014631,2]
[390932161,1760224233747,-381.57298282,0.00014646,2]
[390932162,1760224233760,-255.0,0.00014667,2]
[390932163,1760224233775,-852.04043839,0.00014673,2]
[390932164,1760224233790,-381.57298282,0.00014678,2]
[390932165,1760224233805,-183.471,0.00014698,2]
[390932166,1760224233819,-5332.523,0.00014698,2]
[390932167,1760224233831,-381.57298282,0.00014709,2]
[390932168,1760224233846,-546.15,0.00014714,2]
[390932169,1760224233860,-413.23,0.00014714,2]
[390932170,1760224233876,-681.75043388,0.00014736,2]
[390932171,1760224233891,-381.57298282,0.00014741,2]
[390932172,1760224233906,-1048.97,0.00014754,2]
[390932173,1760224233922,-2000.0,0.00014767,2]
[390932174,1760224233936,-500.0,0.00014767,2]
[390932175,1760224233951,-381.57298282,0.00014773,2]
[390932176,1760224233966,-196.82885898,0.00014787,2]
[390932177,1760224233981,-5888.0,0.00014796,2]
[390932178,1760224233994,-1000.0,0.000148,2]
[390932179,1760224234007,-381.57298282,0.00014805,2]
[390932180,1760224234018,-500.0,0.00014899,2]
[390932181,1760224234034,-505.84061577,0.00014899,2]
[390932182,1760224234047,-296.26773383,0.00014899,2]
[390932183,1760224234058,-266.14226925,0.00014899,2]
[390932184,1760224234071,-317.310719,0.00014899,2]
[390932185,1760224234087,-500.0,0.00014899,2]
[390932186,1760224234099,-196.82885898,0.000149,2]
[390932187,1760224234110,-5800.0,0.000149,2]
[390932188,1760224234123,-5000.0,0.000149,2]
[390932189,1760224234135,-55555.0,0.000149,2]
[390932190,1760224234148,-405.94616384,0.000149,2]
[390932191,1760224234170,-214.9046287,0.000149,2]
[390932192,1760224234182,-5800.0,0.000149,2]
[390932193,1760224234195,-2755.0958086,0.00014908,2]
[390932194,1760224234208,-150.0,0.00014919,2]
[390932195,1760224234220,-150.0,0.00014919,2]
[390932196,1760224234232,-500.0,0.00014919,2]
[390932197,1760224234245,-150.0,0.00014919,2]
[390932198,1760224234258,-150.0,0.00014919,2]
[390932199,1760224234271,-150.0,0.00014919,2]
[390932200,1760224234286,-500.0,0.00014919,2]
[390932201,1760224234299,-500.0,0.00014919,2]
[390932202,1760224234312,-150.0,0.00014919,2]
[390932203,1760224234325,-150.0,0.00014919,2]
[390932204,1760224234336,-500.0,0.00014919,2]
[390932205,1760224234349,-500.0,0.00014919,2]
[390932206,1760224234362,-219.41300137,0.00014919,2]
[390932207,1760224234374,-500.0,0.00014919,2]
[390932208,1760224234388,-200.0,0.00014919,2]
[390932209,1760224234400,-552.18409564,0.00014963,3]
[390932210,1760224234412,-500.0,0.00014973,2]
[390932211,1760224234424,-500.0,0.00014973,2]
[390932212,1760224234439,-500.0,0.00014973,2]
[390932213,1760224234453,-160.2798425,0.00014973,2]
[390932214,1760224234465,-500.24728439,0.00014973,2]
[390932215,1760224234478,-548.85051864,0.00014973,2]
[390932216,1760224234490,-500.0,0.00014973,2]
[390932217,1760224234502,-500.0,0.00014973,2]
[390932218,1760224234515,-500.0,0.00014973,2]
[390932219,1760224234527,-163.47778567,0.00014973,2]
[390932220,1760224234539,-500.0,0.00014973,2]
[390932221,1760224234552,-500.0,0.00014973,2]
[390932222,1760224234563,-163.39750219,0.00014973,2]
[390932223,1760224234576,-500.0,0.00014973,2]
[390932224,1760224234588,-409.0186696,0.00014973,2]
[390932225,1760224234601,-604.84987033,0.00014973,2]
[390932226,1760224234614,-311.74346457,0.00014973,2]
[390932227,1760224234625,-471.79906783,0.00014973,2]
[390932228,1760224234638,-500.0,0.00014973,2]
[390932229,1760224234650,-156.7365958,0.00014973,2]
[390932230,1760224234662,-500.0,0.00014973,2]
[390932231,1760224234675,-500.0,0.00014973,2]
[390932232,1760224234687,-500.0,0.00014973,2]
[390932233,1760224234700,-500.0,0.00014973,2]
[390932234,1760224234712,-494.24867577,0.00014973,2]
[390932235,1760224234725,-500.0,0.00014973,2]
[390932236,1760224234737,-1922.64469,0.00014973,2]
[390932237,1760224234750,-150.0,0.00014974,2]
[390932238,1760224234762,-150.0,0.00014974,2]
[390932239,1760224234775,-500.0,0.00014974,2]
[390932240,1760224234788,-169.71335186,0.00014974,2]
[390932241,1760224234800,-200.0,0.00014974,2]
[390932242,1760224234813,-500.0,0.00014974,2]
[390932243,1760224234826,-500.0,0.00014974,2]
[390932244,1760224234839,-150.0,0.00014974,2]
[390932245,1760224234852,-150.0,0.00014974,2]
[390932246,1760224234865,-500.0,0.00014974,2]
[390932247,1760224234879,-500.0,0.00014974,2]
[390932248,1760224234892,-500.0,0.00014974,2]
[390932249,1760224234905,-1810.65,0.00014976,2]
[390932250,1760224234918,-59008.0,0.00014986,2]
[390932251,1760224234931,-1810.65,0.00014989,2]
[390932252,1760224234943,-162.8459007,0.00014989,2]
[390932253,1760224234957,-162.8459007,0.0001499,2]
[390932254,1760224234971,-428.44426241,0.00014998,2]
[390932255,1760224234983,-666.0,0.00014998,2]
[390932256,1760224234996,-666.0,0.00014999,2]
[390932257,1760224235009,-666.0,0.00014999,2]
[390932258,1760224235022,-666.0,0.00014999,2]
[390932259,1760224235035,-5014.92,0.00014999,2]
[390932260,1760224235047,-817.67,0.00014999,2]
[390932261,1760224235060,-150.0,0.00014999,2]
[390932262,1760224235072,-666.0,0.00014999,2]
[390932263,1760224235085,-666.0,0.00014999,2]
[390932264,1760224235098,-3816.0,0.00014999,2]
[390932265,1760224235111,-146570.50488051,0.00015,2]
[390932266,1760224235129,-48227.58283875,0.00015,2]
[390932267,1760224235143,-56753.94090466,0.00015,2]
[390932268,1760224235158,-110957.63090653,0.00015,2]
[390932269,1760224235173,-592.36206145,0.00015,2]
[390932270,1760224235339,-500.0,0.00013504,2]
[390932271,1760224235354,-500.0,0.00013504,2]
[390932272,1760224235366,-455.22816145,0.00013504,2]
[390932273,1760224235412,-44.77183855,0.00013504,2]
[390932274,1760224235425,-500.0,0.00013504,2]
[390932275,1760224235436,-500.0,0.00013504,2]
[390932276,1760224235449,-26.72109189,0.00015,2]
[390932277,1760224235464,-252.14493458,0.00015,2]
[390932278,1760224235480,-5344.26128386,0.00015,2]
[390932279,1760224235495,-298.86,0.00015,2]
[390932280,1760224235548,-500.0,0.00013504,2]
[390932281,1760224235560,-1025.13731268,0.00015,2]
[390932362,1760224239001,-500.0,0.00013504,2]
[390932364,1760224239010,-385.69352486,0.00013504,2]
[390932366,1760224239022,-114.30647514,0.00013504,2]
[390932368,1760224239032,-500.0,0.00013504,2]
[390932370,1760224239041,-500.0,0.00013504,2]
[390932372,1760224239050,-500.0,0.00013504,2]
[390932374,1760224239060,-416.80986248,0.00013504,2]
[390932376,1760224239069,-500.0,0.00013504,2]
[390932378,1760224239078,-381.57298282,0.00014836,2]
[390932380,1760224239088,-1877.5827537,0.000149,2]
[390932382,1760224239097,-118.3272969,0.00015,2]
[390932389,1760224239150,-381.57298282,0.00014868,2]
[390932391,1760224239159,-69.01200718,0.00015,2]
[390932485,1760224240080,-4111.28769877,0.00015,2]
[390932507,1760224240287,-841.0,0.00015,2]
[390932509,1760224240299,-12787.21446504,0.00015,2]
[390932518,1760224240384,-3430.27801453,0.00015,2]
[390932520,1760224240398,-2148.6,0.00015,2]
[390932522,1760224240410,-442.38125103,0.00015,2]
[390932631,1760224241646,-1.6e-07,0.00015,2]
[390932820,1760224243225,-259.79,0.0001489,2]
[390932822,1760224243234,-340.21,0.000149,2]
[390932837,1760224243369,-41.36298282,0.000149,2]
[390932839,1760224243379,-259.79,0.00014963,2]
[390932841,1760224243388,-259.79,0.00014976,2]
[390932843,1760224243398,-259.79,0.0001499,2]
[390932845,1760224243407,-259.79,0.0001499,2]
[390932847,1760224243416,-2512.31410829,0.00015,2]
[390932850,1760224243436,-11670.78996157,0.00015,2]
[390932855,1760224243472,-699.5899999,0.00015,2]
[390932857,1760224243484,-779.36679134,0.00015,2]
[390932871,1760224243606,-4532.88287614,0.00015,2]
[390933117,1760224246142,-151.91126268,0.000149,2]
[390933119,1760224246152,-825.66312662,0.00015,2]
[390933137,1760224246311,-16683.98565526,0.00015,2]
[390936321,1760224293862,-176.86827841,0.0001315,2]
[390936322,1760224295298,-182.57138197,0.0001315,2]
[390936323,1760224303747,-240.56033962,0.0001315,2]
[390936324,1760224303772,-259.43966038,0.00013424,2]
[390936863,1760225315936,13833.78715719,0.0001,2]
[390936866,1760225318942,188.42,0.00010769,2]
[390936880,1760225432363,-500.0,0.0001315,2]
[390936881,1760225432373,-810.27893922,0.00013213,2]
[390936882,1760225432420,-1189.72106078,0.00013213,2]
[390936883,1760225432430,-2000.0,0.00013331,2]
[390936884,1760225432440,-1200.0,0.00013401,2]
[390936885,1760225432451,-300.0,0.00013401,2]
[390936886,1760225432461,-300.0,0.00013401,2]
[390936887,1760225432476,-3548.36662474,0.00013402,2]
[390936888,1760225432488,-4305.53337526,0.00013402,2]
[390936889,1760225432497,-240.56033962,0.00013424,2]
[390936890,1760225432506,-1100.0,0.00013424,2]
[390936891,1760225432516,-188.42,0.00013461,2]
[390936892,1760225432525,-1076.02615955,0.000135,2]
[390936893,1760225432535,-500.0,0.00013502,2]
[390936894,1760225432544,-500.0,0.00013502,2]
[390936895,1760225432553,-500.0,0.00013502,2]
[390936896,1760225432562,-498.72297549,0.00013502,2]
[390936897,1760225432572,-150.0,0.00013502,2]
[390936898,1760225432581,-1655.88,0.00013503,2]
[390936899,1760225432591,-19999.99,0.00013503,2]
[390936900,1760225432600,-445.0388043,0.00013607,2]
[390936901,1760225432610,-257.91778498,0.00013607,2]
[390936902,1760225432619,-2751.0,0.00013616,2]
[390936903,1760225432629,-250.0,0.00013624,2]
[390936904,1760225432641,-184.13,0.00013651,2]
[390936905,1760225432650,-200.0,0.00013699,2]
[390936906,1760225432659,-150.0,0.00013806,2]
[390936907,1760225432667,-184.4,0.00014075,2]
[390936908,1760225432677,-256.0,0.00014104,2]
[390936910,1760225432689,-200.0,0.00014114,2]
[390936911,1760225432698,-256.0,0.00014114,2]
[390936913,1760225432707,-1500.0,0.00014119,2]
[390936915,1760225432717,-321.21,0.00014132,2]
[390936917,1760225432730,-670.58624095,0.00014146,2]
[390936919,1760225432739,-151.0,0.00014146,2]
[390936921,1760225432748,-151.0,0.00014146,2]
[390936924,1760225432759,-322.6107,0.00014146,2]
[390936926,1760225432768,-151.0,0.00014146,2]
[390936927,1760225432777,-151.0,0.00014146,2]
[390936929,1760225432786,-151.0,0.00014146,2]
[390936931,1760225432795,-151.0,0.00014146,2]
[390936934,1760225432804,-151.0,0.00014146,2]
[390936936,1760225432813,-151.0,0.00014146,2]
[390936937,1760225432822,-151.0,0.00014146,2]
[390936940,1760225432832,-151.0,0.00014146,2]
[390936942,1760225432841,-151.0,0.00014146,2]
[390936943,1760225432851,-151.0,0.00014146,2]
[390936944,1760225432860,-220.87170046,0.00014146,2]
[390936945,1760225432870,-151.0,0.00014146,2]
[390936946,1760225432879,-151.0,0.00014146,2]
[390936947,1760225432888,-151.0,0.00014146,2]
[390936948,1760225432897,-151.0,0.00014146,2]
[390936949,1760225432906,-151.0,0.00014146,2]
[390936950,1760225432915,-151.0,0.00014146,2]
[390936951,1760225432925,-151.0,0.00014146,2]
[390936952,1760225432935,-151.0,0.00014146,2]
[390936953,1760225432944,-151.0,0.00014146,2]
[390936954,1760225432953,-151.0,0.00014146,2]